[Event "Chessable English Open-ch 2022"]
[Site "Kenilwoth"]
[Date "2022.05.19"]
[Round "1.1"]
[White "Hebden, Mark L"]
[Black "Boswell, Jacob Connor"]
[Result "1/2-1/2"]
[ECO "D12"]
[WhiteElo "2452"]
[BlackElo "2075"]
[Annotator "TA"]
[PlyCount "83"]
[EventDate "2022.05.18"]
[EventType "swiss"]
[EventCountry "ENG"]
[SourceTitle "playchess.com"]
[Source "ChessBase"]
[SourceQuality "1"]
[TimeControl "5400+30"]

{[%evp 15,83,30,36,25,34,11,12,11,12,2,8,0,4,8,33,40,29,36,29,42,32,31,61,35,37,38,30,29,41,25,27,20,23,5,63,66,39,22,10,0,0,4,8,8,4,-26,-52,-37,-52,-166,-181,-405,-378,-401,-394,-516,-510,-503,-511,-521,-516,-514,-505,-477,0,0,0,0,0,0]} 1. d4 {[%emt 0:00:17]} d5 {[%emt 0:00:16]} 2. c4 {[%emt 0:01:05]} c6 {[%emt 0:00:17]} 3. Nf3 {[%emt 0:00:18]} Nf6 {[%emt 0:00:24]} 4. e3 {[%emt 0:00:19]} Bf5 {[%emt 0:00:32]} 5. Nc3 {[%emt 0:03:08]} e6 {[%emt 0:01:06]} 6. Nh4 {[%emt 0:00:17]} Be4 {[%emt 0:00:42]} 7. f3 {[%emt 0:00:29]} Bg6 {[%emt 0:00:19]} 8. Qb3 {[%emt 0:00:18]} Qc7 {[%emt 0:00:39]} 9. Bd2 {[%emt 0:01:20] D12: Slav Defence: 3 Nf3 Nf6 4 e3 Bf5.} Be7 {[%emt 0:01:10]} 10. Nxg6 {[%emt 0:05:41]} hxg6 {[%emt 0:00:11]} 11. cxd5 {[%emt 0:05:13]} cxd5 {[%emt 0:10:42]} 12. O-O-O {[%emt 0:00:16]} Nc6 {[%emt 0:02:00]} 13. Kb1 {[%emt 0:00:07]} O-O {[%emt 0:03:20]} 14. Rc1 {[%emt 0:01:00]} Na5 {[%emt 0:08:58]} 15. Qa4 {[%emt 0:03:39]} Nc4 {[%emt 0:02:53]} 16. Bxc4 {[%emt 0:00:13]} Qxc4 {[%emt 0:00:46]} 17. Qxc4 {[%emt 0:00:10]} dxc4 {[%emt 0:00:09]} 18. e4 {[%emt 0:00:08]} Rfd8 {[%emt 0:11:03]} 19. Be3 {[%emt 0:00:37]} (19. Nb5 $5 {[%cal Rc1c4]}) 19... a6 {[%emt 0:07:44] [#]} 20. h4 $146 {[%emt 0:01:46]} ({Predecessor:} 20. a4 Rab8 21. Bf4 Rbc8 22. Rhd1 Bb4 23. Rc2 {½-½ (23) Huzman,A (2599)-Feller,S (2570) Ohrid 2009}) 20... b5 {[%emt 0:12:16]} 21. g4 {[%emt 0:00:36][%cal Bg2g4,Bg4g5,Bg5g6][%mdl 32]} Nd7 {[%emt 0:11:55]} 22. g5 {[%emt 0:01:59]} f6 {[%emt 0:02:34]} 23. Rcg1 {[%emt 0:04:47]} f5 {[%emt 0:01:27]} 24. h5 {[%emt 0:01:16]} gxh5 {[%emt 0:02:06]} (24... fxe4 $11 25. Nxe4 gxh5) 25. g6 {[%emt 0:03:18]} h4 {[%emt 0:00:55]} 26. exf5 {[%emt 0:01:15]} b4 {[%emt 0:04:33]} 27. Na4 {[%emt 0:00:48]} exf5 {[%emt 0:00:18]} 28. Bg5 {[%emt 0:00:22]} Bxg5 {[%emt 0:03:56]} 29. Rxg5 {[%emt 0:00:10]} Nf8 {[%emt 0:00:30]} 30. Nb6 {[%emt 0:01:06]} (30. Rxh4 {is more complex.} Re8 31. Rxf5 Re1+ 32. Kc2) 30... Rab8 {[%emt 0:00:57]} 31. Nxc4 {[%emt 0:00:07]} Rxd4 {[%emt 0:00:39]} 32. Ne5 {[%emt 0:00:16] [#]} (32. Ne3 $15) 32... Re8 $1 $36 {[%emt 0:03:07][%mdl 2048] Black is really pushing.} 33. Nc6 {[%emt 0:05:27]} (33. Rxf5 {only move.} Rd5 34. f4) 33... Rc4 {[%emt 0:01:18]} 34. Na5 {[%emt 0:00:57]} Rf4 {[%emt 0:00:36]} 35. Nc6 {[%emt 0:01:57]} Re6 {[%emt 0:07:42]} 36. Rc1 {[%emt 0:00:14]} Nxg6 {[%emt 0:00:00]} 37. Nd8 {[%emt 0:00:11]} Rf6 {[%emt 0:00:00]} 38. Rc8 {[%emt 0:03:17]} Nf8 {[%emt 0:00:00] Against Ne6} 39. Nc6 {[%emt 0:00:14][%cal Bd8c6,Bc6e5,Be5d7][%mdl 32]} Rf7 {[%emt 0:00:46] [#] Against Ne7+} (39... Rxf3 $19 40. Nxb4 h3) 40. Ne5 $11 {[%emt 0:00:23] The position is equal.} Rf6 {[%emt 0:00:43] White must now prevent ...Rd4.} (40... Re7 $2 41. Ng6 (41. Rxf8+ Kxf8 42. Ng6+ Kg8 $11) 41... Re1+ 42. Kc2 Rc4+ 43. Rxc4 $18) 41. Nd7 {[%emt 0:02:39]} Rf7 {[%emt 0:00:14]} 42. Ne5 {[%emt 0:00:11] Weighted Error Value: White=0.21 (precise) /Black=0.16 (very precise)} 1/2-1/2

[Event "Chessable English Open-ch 2022"]
[Site "Kenilwoth"]
[Date "2022.05.19"]
[Round "1.2"]
[White "Thompson, Ian D"]
[Black "Harvey, Marcus R"]
[Result "0-1"]
[ECO "B38"]
[WhiteElo "2074"]
[BlackElo "2455"]
[Annotator "TA"]
[PlyCount "100"]
[EventDate "2022.05.18"]
[EventType "swiss"]
[EventCountry "ENG"]
[SourceTitle "playchess.com"]
[Source "ChessBase"]
[SourceQuality "1"]
[TimeControl "5400+30"]

{[%evp 21,100,56,77,61,74,66,93,40,76,54,51,14,14,16,18,12,20,8,15,15,39,39,26,21,24,22,15,14,20,0,0,0,0,0,0,0,0,-21,-21,-21,-20,-22,-17,-14,-18,-16,-25,-15,-20,-20,0,0,0,-109,-105,-81,-70,-70,-70,-95,-66,-89,-89,-292,-273,-273,-273,-258,-258,-418,-395,-404,-397,-796,-783,-758,-749,-801,-787,-29969,-29970]} 1. c4 {[%emt 0:00:01]} b6 {[%emt 0:04:19]} 2. Nc3 {[%emt 0:00:35]} Bb7 {[%emt 0:00:19]} 3. e4 {[%emt 0:00:55]} c5 {[%emt 0:02:52]} 4. Nf3 {[%emt 0:02:51]} Nc6 {[%emt 0:02:09]} 5. d4 {[%emt 0:01:25]} cxd4 {[%emt 0:00:08]} 6. Nxd4 {[%emt 0:00:06]} Nf6 {[%emt 0:01:29]} 7. Be2 {[%emt 0:21:27]} g6 {[%emt 0:03:18]} 8. O-O {[%emt 0:05:15]} Bg7 {[%emt 0:00:52]} 9. Be3 {[%emt 0:03:23]} O-O {[%emt 0:00:33]} 10. f3 {[%emt 0:03:47]} d6 {[%emt 0:09:48]} 11. Qd2 {[%emt 0:02:07]} Qd7 {[%emt 0:04:07]} 12. Rfd1 {[%emt 0:03:57] B38: Sicilian: Maroczy Bind with 5...Bg7 and 7...0-0.} Rfd8 {[%emt 0:03:37]} 13. Rac1 {[%emt 0:00:34]} Ne8 {[%emt 0:11:04][%cal Bf6e8,Be8c7,Bc7e6,Be6g5][%mdl 32]} 14. b3 {[%emt 0:03:10] [#]} (14. Ndb5 $16) 14... Nc7 $146 {[%emt 0:02:54]} ({Predecessor:} 14... e6 15. Nxc6 Bxc6 16. Bg5 f6 17. Be3 Qf7 18. Qe1 Rd7 19. Qf2 Kh8 20. f4 f5 21. exf5 gxf5 {½-½ (43) Witt,R (2260)-Bellon Lopez,J (2415) Wijk aan Zee 1977}) 15. Nxc6 {[%emt 0:04:43]} Bxc6 {[%emt 0:00:17]} 16. Bd4 {[%emt 0:03:24]} Bxd4+ {[%emt 0:04:59]} 17. Qxd4 {[%emt 0:00:03]} e5 {[%emt 0:00:42]} 18. Qe3 {[%emt 0:01:15]} (18. Qf2 {feels hotter.} Ne6 19. Qh4 Kg7 20. Rd2) 18... Ne6 {[%emt 0:00:06]} 19. Bf1 {[%emt 0:01:39]} Qe7 {[%emt 0:06:58]} 20. Ne2 {[%emt 0:06:14]} Qg5 {[%emt 0:01:41]} 21. Qxg5 {[%emt 0:03:27]} Nxg5 {[%emt 0:01:32]} 22. Rc2 {[%emt 0:03:29]} Kf8 {[%emt 0:00:39]} 23. h4 {[%emt 0:02:15]} Ne6 {[%emt 0:00:04]} 24. g3 {[%emt 0:00:21]} b5 {[%emt 0:04:50]} 25. Bh3 {[%emt 0:02:23]} bxc4 {[%emt 0:01:21]} 26. Bxe6 {[%emt 0:00:11]} fxe6 {[%emt 0:00:02]} 27. Rxc4 {[%emt 0:00:11]} Bb5 {[%emt 0:00:05]} 28. Rc2 {[%emt 0:00:05]} Rac8 {[%emt 0:00:16]} 29. Rcd2 {[%emt 0:03:10]} Ke7 {[%emt 0:01:44]} 30. Kf2 {[%emt 0:01:08]} Rc5 {[%emt 0:01:42]} 31. a4 {[%emt 0:08:19]} Be8 {[%emt 0:02:23]} 32. f4 {[%emt 0:02:19]} a5 {[%emt 0:02:47]} (32... exf4 {seems wilder.} 33. gxf4 Bc6 34. e5 Bd5) 33. Rc1 $1 {[%emt 0:05:46]} Rxc1 {[%emt 0:01:25]} 34. Nxc1 $11 {[%emt 0:00:01][%mdl 4096] Endgame KRB-KRN} Rc8 {[%emt 0:00:17]} 35. Ne2 {[%emt 0:00:11]} Rb8 {[%emt 0:04:17]} 36. fxe5 {[%emt 0:01:25]} dxe5 {[%emt 0:00:02]} 37. Rc2 {[%emt 0:02:25]} (37. Rd3 $11 {keeps the balance.}) 37... Rxb3 $17 {[%emt 0:02:30]} 38. Rc5 {[%emt 0:00:21][%csl LRa5,LRe5]} Bxa4 {[%emt 0:05:20]} 39. Rxa5 {[%emt 0:00:02]} Bb5 {[%emt 0:00:07] [#] aiming for ...Rb2.} 40. Ra2 {[%emt 0:00:20] Inhibits Rb2.} Kf6 {[%emt 0:02:52] White must now prevent ...Bc6.} 41. Rc2 {[%emt 0:00:44] Inhibits Bc6.} h6 {[%emt 0:02:30]} 42. Rd2 $2 {[%emt 0:03:13] [#] White does not recover from this.} (42. Nc1 $17 Rb4 43. Kf3) 42... Bc6 $1 $19 {[%emt 0:00:21]} 43. Nc1 {[%emt 0:00:52]} Rc3 {[%emt 0:00:29]} 44. Ne2 {[%emt 0:00:59]} Ra3 {[%emt 0:01:15]} 45. Ng1 $2 {[%emt 0:01:39]} (45. Rc2 Bxe4 46. Rc3) 45... Bxe4 {[%emt 0:01:15]} 46. Rb2 {[%emt 0:00:18]} Bf5 {[%emt 0:01:28]} 47. Re2 $2 {[%emt 0:00:47]} (47. Nf3) 47... Bg4 {[%emt 0:00:14]} 48. Rb2 {[%emt 0:00:38]} e4 {[%emt 0:01:32][%cal Be5e4,Be4e3][%mdl 32]} 49. Ne2 {[%emt 0:00:06]} e3+ {[%emt 0:00:18]} 50. Kg2 {[%emt 0:00:13]} Rd3 {[%emt 0:00:36] Weighted Error Value: White=0.56/Black=0.04 (flawless)} 0-1

[Event "Chessable English Open-ch 2022"]
[Site "Kenilwoth"]
[Date "2022.05.19"]
[Round "1.3"]
[White "Pert, Richard G"]
[Black "Khoury, Theo"]
[Result "1-0"]
[ECO "D30"]
[WhiteElo "2415"]
[BlackElo "1927"]
[Annotator "TA"]
[PlyCount "59"]
[EventDate "2022.05.18"]
[EventType "swiss"]
[EventCountry "ENG"]
[SourceTitle "playchess.com"]
[Source "ChessBase"]
[SourceQuality "1"]
[TimeControl "5400+30"]

{[%evp 12,59,16,11,33,51,50,51,71,55,125,125,124,114,119,120,124,127,119,110,177,165,156,159,167,183,253,261,259,260,268,252,266,266,281,276,267,260,1083,1086,831,786,2272,1772,1764,1371,6179,5485,5106,462]} 1. d4 {[%emt 0:00:04]} Nf6 {[%emt 0:00:12]} 2. Nf3 {[%emt 0:00:09]} e6 {[%emt 0:00:11]} 3. c4 {[%emt 0:00:12]} c5 {[%emt 0:00:07]} 4. e3 {[%emt 0:00:07]} d5 {[%emt 0:00:22]} 5. cxd5 {[%emt 0:00:17]} exd5 {[%emt 0:00:26]} 6. Bb5+ {[%emt 0:00:07]} Nc6 {[%emt 0:05:04]} 7. O-O {[%emt 0:00:40]} a6 {[%emt 0:07:59] 7...cxd4 is becoming the main line. D30: Queen's Gambit Declined: Systems without Nc3.} 8. Bxc6+ {[%emt 0:03:18]} bxc6 {[%emt 0:01:12]} 9. Qc2 {[%emt 0:14:30]} Qb6 {[%emt 0:11:02] White is slightly better.} 10. Nc3 {[%emt 0:07:12]} c4 {[%emt 0:09:20]} ({Better is} 10... cxd4 $14 11. exd4 Bd6) 11. b3 $16 {[%emt 0:03:30]} cxb3 {[%emt 0:05:45]} 12. axb3 {[%emt 0:00:03]} Bd6 {[%emt 0:06:25] [#]} 13. Ba3 $146 {[%emt 0:04:37]} ({Predecessor:} 13. e4 dxe4 14. Nxe4 Be7 15. Ba3 Be6 16. Bxe7 Kxe7 17. Nc5 Rhd8 18. Rfe1 Rd6 19. Ng5 {1-0 (34) Uth,G-Croneis,H Wiesbaden 1998}) 13... Qc7 {[%emt 0:08:54]} 14. Bxd6 {[%emt 0:02:02]} Qxd6 {[%emt 0:00:09]} 15. Na4 {[%emt 0:01:50] White is more active.} O-O {[%emt 0:05:11]} (15... Nd7 $16) 16. Rfc1 {[%emt 0:00:57]} Rb8 {[%emt 0:04:45]} 17. Ne5 {[%emt 0:02:03] Pair of Knights!} Ng4 {[%emt 0:08:32]} 18. Qxc6 {[%emt 0:05:02]} Qe7 {[%emt 0:10:21]} (18... Qd8 $142 19. Nxg4 Bxg4) 19. Nxg4 $18 {[%emt 0:15:06]} ({Much less strong is} 19. Qxd5 $6 Nxe5 20. dxe5 Rb5 $16) 19... Bxg4 {[%emt 0:00:08]} 20. h3 {[%emt 0:08:21]} Be6 {[%emt 0:02:23]} 21. Nc5 {[%emt 0:00:11]} ({Don't play} 21. Qxa6 $6 Rxb3 22. Nc5 Rbb8 $16) 21... Rfc8 {[%emt 0:08:34]} 22. Qxa6 {[%emt 0:01:25]} h6 {[%emt 0:03:29]} 23. Nxe6 {[%emt 0:01:51]} Rxc1+ {[%emt 0:00:21]} 24. Rxc1 {[%emt 0:00:06] [#] And now Rc8+ would win.} fxe6 $2 {[%emt 0:00:07]} (24... Qxe6 25. Qa4 Qb6) 25. Rc8+ {[%emt 0:01:03] White is clearly winning.} Rxc8 {[%emt 0:00:18]} 26. Qxc8+ {[%emt 0:00:06] KQ-KQ} Kh7 {[%emt 0:00:05]} 27. Qc5 {[%emt 0:01:31]} Qb7 {[%emt 0:01:08]} 28. b4 {[%emt 0:02:24] [#] Black must now prevent b5.} Qa6 {[%emt 0:00:10]} 29. Qc2+ {[%emt 0:00:37]} Kg8 {[%emt 0:01:47]} 30. Qg6 {[%emt 0:02:21] Black got outplayed after the opening.  Weighted Error Value: White=0.02 (flawless) /Black=0.23 (precise)} (30. Qc7 $142 Qa1+ 31. Kh2) 1-0

[Event "Chessable English Open-ch 2022"]
[Site "Kenilwoth"]
[Date "2022.05.19"]
[Round "1.4"]
[White "Duncan, Patrick C M"]
[Black "Wadsworth, Matthew J"]
[Result "0-1"]
[ECO "A01"]
[WhiteElo "2013"]
[BlackElo "2432"]
[Annotator "TA"]
[PlyCount "64"]
[EventDate "2022.05.18"]
[EventType "swiss"]
[EventCountry "ENG"]
[SourceTitle "playchess.com"]
[Source "ChessBase"]
[SourceQuality "1"]
[TimeControl "5400+30"]

{[%evp 9,64,2,14,0,13,10,21,8,19,21,29,0,8,0,0,-41,0,0,-2,-27,-12,-15,-25,-21,-14,-60,-68,-62,-68,-69,-52,-297,-287,-267,-206,-200,-175,-208,-169,-186,-161,-218,-197,-308,-280,-429,-466,-904,-843,-1044,-1025,-1065,-1037,-1197,-1204,-29987,-29988]} 1. b3 {[%emt 0:00:07]} e5 {[%emt 0:00:09][%cal Be7e5,Be5e4][%mdl 32]} 2. Bb2 {[%emt 0:00:09]} Nc6 {[%emt 0:00:09]} 3. e3 {[%emt 0:00:15]} Nf6 {[%emt 0:00:15]} 4. Nf3 {[%emt 0:00:17]} e4 {[%emt 0:00:29]} 5. Nd4 {[%emt 0:00:17]} Bc5 {[%emt 0:00:18]} 6. Nxc6 {[%emt 0:01:06] A01: Nimzowitsch-Larsen Opening.} dxc6 {[%emt 0:00:06]} 7. d4 {[%emt 0:01:00]} Bd6 {[%emt 0:00:10]} 8. Be2 {[%emt 0:04:12] The position is equal.} h5 {[%emt 0:01:20] [#]} 9. c4 $146 {[%emt 0:04:52]} ({Predecessor:} 9. Nd2 Bg4 10. h3 Bxe2 11. Qxe2 Qd7 12. Nc4 O-O-O 13. O-O-O Qf5 14. f3 Kb8 15. Ne5 Bxe5 16. dxe5 {1-0 (55) Cheng,B (2483)-Wallis,C (2380) Adelaide 2017}) 9... Bf5 {[%emt 0:00:42]} 10. Nc3 {[%emt 0:01:53]} h4 {[%emt 0:01:29]} 11. h3 {[%emt 0:01:00]} Rh6 {[%emt 0:01:03]} 12. d5 {[%emt 0:13:24]} c5 {[%emt 0:04:04]} 13. Nb5 {[%emt 0:01:50]} Rg6 {[%emt 0:02:58]} 14. Nxd6+ {[%emt 0:08:27]} Qxd6 {[%emt 0:00:06]} 15. Kf1 {[%emt 0:00:44]} Rg5 {[%emt 0:01:10]} 16. a3 {[%emt 0:13:57]} Nd7 {[%emt 0:05:17][%cal Bf6d7,Bd7c5,Bc5d3][%mdl 32]} 17. Bg4 {[%emt 0:02:13]} (17. Kg1 $11) 17... Qg6 $15 {[%emt 0:01:17][%cal Rf5g4]} 18. Bxf5 $1 {[%emt 0:02:53]} Qxf5 {[%emt 0:00:54]} 19. b4 {[%emt 0:05:57]} O-O-O {[%emt 0:02:38][%cal Ob7b5]} 20. bxc5 $2 {[%emt 0:06:49] Now White is beyond hope.} (20. Qa4 $15) 20... Nxc5 $19 {[%emt 0:00:08]} 21. Bd4 {[%emt 0:00:34]} Nd3 {[%emt 0:00:10][%csl Gd3][%cal Rf5f2] [#]} 22. Ra2 {[%emt 0:01:47]} Rg6 $40 {[%emt 0:00:58][%cal Ob7b5,Bg5g6,Bg6a6,Ba6c6][%mdl 160] Black goes for the king.} 23. Qa4 {[%emt 0:03:39]} Ra6 {[%emt 0:01:21]} 24. Qc2 {[%emt 0:01:31]} c5 {[%emt 0:02:13]} 25. dxc6 {[%emt 0:03:49]} (25. Bc3 {might work better.}) 25... Rxc6 {[%emt 0:00:37]} 26. c5 {[%emt 0:03:32]} (26. Kg1 {was called for.}) 26... Nxc5 {[%emt 0:01:57] [#] aiming for ...Ne6.} 27. Qe2 {[%emt 0:06:58]} (27. Kg1 $142) 27... Nb3 {[%emt 0:03:25]} 28. Rc2 {[%emt 0:00:49]} (28. g4 $142 hxg3 29. Kg2) 28... Nxd4 {[%emt 0:00:58]} 29. exd4 {[%emt 0:00:14]} Rxd4 {[%emt 0:01:26][%cal Oe4e3] ...e3! is the strong threat.} 30. Rxc6+ {[%emt 0:00:41]} bxc6 {[%emt 0:00:01]} 31. Qa6+ {[%emt 0:01:22]} Kb8 {[%emt 0:00:08] ( -> ...e3)} 32. Ke2 {[%emt 0:01:07]} Qh5+ {[%emt 0:01:32] Weighted Error Value: White=0.75/Black=0.07 (flawless)} 0-1

[Event "Chessable English Open-ch 2022"]
[Site "Kenilwoth"]
[Date "2022.05.19"]
[Round "1.5"]
[White "Roberson, Peter T"]
[Black "Ireland, David J"]
[Result "1-0"]
[ECO "C43"]
[WhiteElo "2421"]
[BlackElo "2000"]
[Annotator "TA"]
[PlyCount "67"]
[EventDate "2022.05.18"]
[EventType "swiss"]
[EventCountry "ENG"]
[SourceTitle "playchess.com"]
[Source "ChessBase"]
[SourceQuality "1"]
[TimeControl "5400+30"]

{[%evp 17,67,50,41,50,43,47,48,31,75,76,101,94,108,113,151,133,154,154,174,172,163,156,160,163,160,155,155,151,237,232,245,174,298,292,350,320,319,307,387,375,497,497,543,550,554,546,546,537,507,495,482,477]} 1. e4 {[%emt 0:00:05]} e5 {[%emt 0:00:11]} 2. Nf3 {[%emt 0:00:07]} Nf6 {[%emt 0:00:17]} 3. d4 {[%emt 0:02:07]} exd4 {[%emt 0:01:11]} 4. e5 {[%emt 0:00:20]} Ne4 {[%emt 0:00:50]} 5. Qxd4 {[%emt 0:00:07]} d5 {[%emt 0:00:42]} 6. exd6 {[%emt 0:00:14]} Nxd6 {[%emt 0:00:28]} 7. Nc3 {[%emt 0:00:10]} Nc6 {[%emt 0:00:54]} 8. Qf4 {[%emt 0:00:24]} Bf5 {[%emt 0:04:29]} 9. Bb5 {[%emt 0:04:19]} Be7 {[%emt 0:08:56]} 10. Be3 {[%emt 0:06:26] C43: Petroff Defence: 3 d4.} O-O {[%emt 0:04:41]} 11. O-O-O {[%emt 0:01:43][%cal Od1d6] [#] And now Rxd6! would win.} Qc8 {[%emt 0:03:56] [#]} 12. h4 $146 {[%emt 0:11:13][%cal Bh2h4,Bh4h5][%mdl 32] White is slightly better.} (12. Bxc6 $5 bxc6 13. Rhe1 $11) ({Predecessor:} 12. Bxc6 bxc6 13. Rhe1 Re8 14. Bc5 Bg6 15. Ne5 Bf6 16. Nxg6 hxg6 17. Rxe8+ Qxe8 18. Bd4 Bxd4 19. Rxd4 Nb5 20. Re4 Qd7 21. Qe3 Nd6 22. Ra4 Re8 {½-½ (22) Persson,B (2024)-Hubal,M (2058) ICCF email 2015}) 12... Bf6 {[%emt 0:05:20]} 13. Bxc6 {[%emt 0:03:02] aiming for Bd5.} bxc6 {[%emt 0:03:22]} 14. Bd4 {[%emt 0:01:36] Strongly threatening Bxf6. White is more active.} Bxd4 {[%emt 0:06:04]} 15. Nxd4 {[%emt 0:00:14]} Re8 {[%emt 0:05:05]} 16. h5 {[%emt 0:06:56]} c5 {[%emt 0:09:03]} 17. Nxf5 {[%emt 0:12:40]} Qxf5 {[%emt 0:01:30]} 18. Qxf5 {[%emt 0:00:40]} Nxf5 {[%emt 0:00:03]} 19. Rd5 {[%emt 0:05:27][%csl LRc5,LRf5]} Nd4 {[%emt 0:04:26]} 20. Rxc5 {[%emt 0:03:58]} Ne2+ {[%emt 0:00:24]} 21. Nxe2 {[%emt 0:00:53]} Rxe2 $16 {[%emt 0:00:05][%mdl 4096] Endgame KRR-KRR} 22. Rf1 {[%emt 0:06:32]} h6 {[%emt 0:04:52]} (22... Rc8 $16 {was called for.} 23. g4 Kf8) 23. Rxc7 $18 {[%emt 0:02:13]} a5 {[%emt 0:02:23]} 24. a4 {[%emt 0:02:52]} Rd8 {[%emt 0:01:16]} (24... Re5 $142 25. b3 Rxh5) 25. b3 {[%emt 0:06:31]} Rdd2 {[%emt 0:05:31]} 26. g3 {[%emt 0:01:19][%cal Bg2g3,Bg3g4][%mdl 32]} Kf8 {[%emt 0:03:38]} 27. f3 {[%emt 0:02:58]} Ke8 {[%emt 0:00:49]} 28. g4 {[%emt 0:01:20]} Kd8 {[%emt 0:03:44]} 29. Rc5 {[%emt 0:00:12] White is clearly winning.} Ke7 {[%emt 0:00:45]} 30. Rd1 {[%emt 0:02:23]} Rxd1+ {[%emt 0:01:50]} 31. Kxd1 {[%emt 0:00:03]} Rf2 {[%emt 0:00:30]} 32. Rxa5 {[%emt 0:00:26]} Rxf3 {[%emt 0:00:18]} 33. Rf5 {[%emt 0:00:45]} Rg3 {[%emt 0:02:00]} 34. Rf4 {[%emt 0:00:17] Black got outplayed after the opening.  Weighted Error Value: White=0.08 (flawless) /Black=0.33} 1-0

[Event "Chessable English Open-ch 2022"]
[Site "Kenilwoth"]
[Date "2022.05.19"]
[Round "1.6"]
[White "Hepworth, Peter"]
[Black "Willow, Jonah B"]
[Result "0-1"]
[ECO "E14"]
[WhiteElo "1843"]
[BlackElo "2401"]
[Annotator "TA"]
[PlyCount "68"]
[EventDate "2022.05.18"]
[EventType "swiss"]
[EventCountry "ENG"]
[SourceTitle "playchess.com"]
[Source "ChessBase"]
[SourceQuality "1"]
[TimeControl "5400+30"]

{[%evp 17,68,7,15,-6,-2,0,0,-14,-14,-9,0,-4,0,0,14,9,0,0,0,-26,0,0,0,-187,-16,-254,-247,-247,-235,-325,-308,-349,-379,-376,-152,-163,-81,-595,-575,-551,-284,-433,-421,-400,-408,-550,-514,-1175,-1174,-1121,-1086,-6859,-6736]} 1. d4 {[%emt 0:00:02]} Nf6 {[%emt 0:00:26]} 2. Nf3 {[%emt 0:00:03]} d5 {[%emt 0:00:20]} 3. e3 {[%emt 0:00:39]} e6 {[%emt 0:01:36]} 4. Bd3 {[%emt 0:00:50]} Be7 {[%emt 0:00:38]} 5. O-O {[%emt 0:00:52]} O-O {[%emt 0:00:08]} 6. Nbd2 {[%emt 0:00:27]} b6 {[%emt 0:01:11]} 7. b3 {[%emt 0:01:11]} Bb7 {[%emt 0:03:20]} 8. Bb2 {[%emt 0:05:52]} c5 {[%emt 0:03:00]} 9. c4 {[%emt 0:01:54]} Nc6 {[%emt 0:04:21]} 10. Ne5 {[%emt 0:05:02] E14: Queen's Indian: Classical Variation (4 e3).} dxc4 {[%emt 0:05:20]} 11. Nxc6 {[%emt 0:03:37]} Bxc6 {[%emt 0:00:09]} 12. bxc4 {[%emt 0:00:44] [#] The position is equal.} Qc7 $146 {[%emt 0:02:33]} ({Predecessor:} 12... Rc8 13. Rc1 Qd7 14. Nf3 Qb7 15. Bb1 Rfd8 16. Qe2 b5 17. dxc5 bxc4 18. Rfd1 Rxd1+ 19. Rxd1 Bxf3 20. gxf3 Rxc5 {0-1 (41) Tsiganova,M (2189)-Kozjukova,O (2045) Tallinn 2009}) 13. Qe2 {[%emt 0:11:09]} Rfd8 $40 {[%emt 0:02:59][%mdl 128] Black attacks.} 14. Rad1 {[%emt 0:09:46]} Rac8 {[%emt 0:06:57]} 15. f4 {[%emt 0:11:28]} cxd4 {[%emt 0:09:46]} 16. exd4 {[%emt 0:02:55]} Re8 {[%emt 0:00:53]} 17. h3 {[%emt 0:06:36]} Bb7 {[%emt 0:03:11][%cal Bc6b7,Bb7a6,Ba6c4][%mdl 32]} 18. Qf2 {[%emt 0:10:29]} Rcd8 {[%emt 0:00:36]} 19. Qe3 {[%emt 0:06:15]} Bd6 {[%emt 0:03:07]} 20. Qg3 $2 {[%emt 0:05:56]} (20. Kh2 $11 {and White has nothing to worry.}) 20... g6 $2 {[%emt 0:03:05]} ({Black should play} 20... Nh5 $1 $19 {[%cal Rh5g3]} 21. Qh4 g6) 21. Qg5 {[%emt 0:03:20]} (21. Be2 $11 {and White is okay.}) 21... Nh5 $19 {[%emt 0:02:04]} 22. Be4 {[%emt 0:05:25]} Ba6 {[%emt 0:07:21][%cal Rd6f4]} 23. Qh4 {[%emt 0:04:25]} Bxf4 {[%emt 0:01:10]} 24. Rf3 {[%emt 0:01:11]} f5 {[%emt 0:01:41]} 25. g4 {[%emt 0:01:38]} fxe4 {[%emt 0:00:21]} (25... Bxd2 $19 {is more deadly.} 26. Bd3 Bb7 27. gxh5 Bxf3 28. Rxd2 Bxh5) 26. Nxe4 $17 {[%emt 0:00:31] [#]} Rf8 {[%emt 0:19:44]} 27. Rdf1 $2 {[%emt 0:00:55][%mdl 8192]} (27. gxh5 $17 {lives longer.} Bh2+ 28. Kg2 Rxf3 29. d5) 27... Bxc4 $19 {[%emt 0:05:11]} 28. gxh5 {[%emt 0:00:13][%cal Rf3f4]} g5 {[%emt 0:09:06]} ({Inferior is} 28... Bh2+ 29. Kh1 Bxf1 30. Nf6+ Kh8 31. d5 $11) 29. Rxf4 {[%emt 0:00:48]} (29. Nxg5 $142 Be3+ 30. Kh1 Bxf1 31. Rxe3) 29... gxh4 {[%emt 0:01:10]} 30. Rg4+ {[%emt 0:00:04] [#]} Qg7 $3 {[%emt 0:01:50]} 31. Nf6+ {[%emt 0:00:52]} (31. Rxg7+ Kxg7) 31... Kh8 {[%emt 0:00:29] Black is clearly winning.} ({Not} 31... Rxf6 $2 32. Rxf6 Qxg4+ 33. hxg4 $19) 32. d5 {[%emt 0:00:34]} (32. Rxg7 $142 Kxg7 33. Rf4) 32... Bxf1 {[%emt 0:00:11]} 33. Rxg7 {[%emt 0:00:30]} Kxg7 {[%emt 0:00:01]} 34. h6+ {[%emt 0:00:29]} Kg6 {[%emt 0:00:20] Weighted Error Value: White=1.12/Black=0.39} 0-1